bitfinex-derivatives/quotes_ETHF0:USTF0_20260303
["timestamp","ask_amount","ask_price","bid_price","bid_amount"]
[1772556874729,0.00504746,1982.8,1982.2,0.51852853]
[1772556875622,2.48170342,1983.3,1982.4,6.69871099]
[1772556875824,2.48170342,1983.6,1982.6,0.49427099]
[1772556876027,2.48170342,1983.6,1982.7,0.24159385]
[1772556876223,2.48170342,1983.6,1982.6,0.25218]
[1772556876525,2.48170342,1983.6,1982.9,0.23582271]
[1772556876724,2.4857808,1983.6,1982.9,0.00607461]
[1772556877519,2.4857808,1983.6,1982.9,0.23711437]
[1772556877520,0.00407738,1983.6,1982.9,0.23711437]
[1772556878720,0.00407738,1983.6,1983.0,0.47703542]
[1772556879118,0.00407738,1983.6,1983.1,0.19941937]
[1772556879324,2.4857808,1983.6,1982.9,0.00607461]
[1772556879619,0.00407738,1983.6,1983.0,0.19572562]
[1772556879827,2.48170342,1984.7,1983.5,0.25207]
[1772556880320,2.48170342,1984.7,1983.5,0.44585687]
[1772556880718,2.48666484,1984.7,1983.5,0.25207]
[1772556881518,2.48666484,1984.7,1983.6,0.19348212]
[1772556881722,2.48666484,1984.7,1983.9,0.44550212]
[1772556882718,2.48666484,1984.7,1983.4,0.25208]
[1772556882918,2.48666484,1984.7,1983.4,0.4415554]
[1772556883629,2.48666484,1984.7,1983.3,6.607]
[1772556883630,2.48666484,1984.7,1983.7,0.16812413]
[1772556883826,2.48666484,1984.7,1983.3,6.607]
[1772556884323,2.48666484,1984.7,1983.5,0.16783882]
[1772556884720,2.48666484,1984.7,1983.7,0.16421574]
[1772556885023,2.48666484,1984.7,1983.6,0.25205]
[1772556885428,2.48666484,1984.7,1983.7,0.17043828]
[1772556886524,6.19375,1985.9,1983.3,12.80859]
[1772556886525,2.48170342,1986.1,1984.5,0.16165055]
[1772556886827,2.48170342,1986.1,1984.7,0.16165055]
[1772556887025,2.48170342,1986.1,1985.1,0.1594565]
[1772556887224,2.48170342,1986.1,1985.0,6.606]
[1772556887420,2.48724388,1986.1,1985.0,0.00610995]
[1772556887625,2.48170342,1986.0,1985.0,0.00610995]
[1772556887826,2.48170342,1986.0,1984.3,6.76196037]
[1772556888025,2.63286015,1985.9,1984.3,6.606]
[1772556888330,2.38110015,1985.8,1984.3,6.606]
[1772556888530,2.63289015,1985.7,1984.3,6.606]
[1772556888824,2.63289015,1985.7,1984.3,0.00472355]
[1772556888825,2.38110015,1985.5,1984.3,0.00472355]
[1772556889437,2.55123401,1985.3,1983.4,6.85707]
[1772556889932,2.54887224,1985.1,1983.4,6.85707]
[1772556890432,2.54887224,1985.1,1983.4,6.86290154]
[1772556891030,2.54886046,1984.9,1983.4,6.86290154]
[1772556891233,2.54658538,1984.7,1983.4,6.86290154]
[1772556891437,2.55046736,1984.7,1983.4,6.86290154]
[1772556893831,0.00388198,1984.7,1984.2,0.25197]
[1772556894041,2.52913292,1985.0,1984.2,0.25197]
[1772556894332,2.38110015,1984.9,1983.8,1.62861993]
[1772556894530,2.38110015,1984.9,1983.4,2.29897032]
[1772556894728,2.38110015,1984.7,1983.4,2.29897032]
[1772556894934,2.38676122,1984.7,1983.4,0.00583154]
[1772556895126,2.38676122,1984.7,1983.5,2.52978929]
[1772556895331,2.38676122,1984.7,1983.4,0.00583154]
[1772556896527,2.38110015,1984.5,1983.4,0.00583154]
[1772556896726,2.38110015,1984.3,1983.4,0.00583154]
[1772556898934,2.38110015,1984.3,1983.4,0.25790154]
[1772556899134,2.38110015,1984.3,1983.4,2.57103259]
[1772556899533,2.38110015,1984.6,1983.7,2.31313105]
[1772556899733,2.38110015,1984.6,1983.8,2.56516105]
[1772556899934,2.38110015,1984.6,1983.8,0.25203]
[1772556900140,2.38110015,1984.6,1983.8,2.56516105]
[1772556900340,0.25186,1985.2,1984.2,2.56511105]
[1772556900341,2.38110015,1985.2,1984.2,2.56511105]
[1772556900731,2.38110015,1985.2,1984.2,0.25198]
[1772556901130,2.38110015,1985.2,1984.0,2.31313105]
[1772556901331,2.38696701,1985.2,1983.9,2.56515105]
[1772556901534,2.38696701,1985.2,1984.5,0.25194]
[1772556901742,0.00586686,1985.2,1984.5,2.56507105]
[1772556901940,2.38696701,1985.2,1984.0,0.252]
[1772556902135,2.38110015,1985.0,1983.6,6.26856814]
[1772556902336,2.38110015,1985.0,1983.5,7.85611164]
[1772556902337,2.38110015,1985.0,1983.5,2.31313105]
[1772556902838,2.38110015,1985.0,1984.4,0.25195]
[1772556903036,2.38696701,1985.2,1984.4,0.25195]
[1772556903339,2.38696701,1985.2,1983.9,6.53776824]
[1772556903634,2.38110015,1985.0,1983.9,0.25201]
[1772556903842,2.38110015,1985.0,1983.9,2.56514105]
[1772556904140,2.38110015,1985.0,1983.9,0.25201]
[1772556904333,2.38110015,1985.0,1984.2,2.31313105]
[1772556904532,0.00586686,1985.2,1984.4,2.31313105]
[1772556904741,6.86e-06,1985.2,1984.9,2.56502105]
[1772556905141,2.38110015,1985.9,1985.1,2.56499105]
[1772556905538,2.38110015,1986.4,1985.3,2.56497105]
[1772556905738,2.38110015,1986.7,1985.8,2.31313105]
[1772556906039,0.00491239,1986.7,1986.1,2.56487105]
[1772556906242,2.38601254,1986.7,1985.8,2.31732409]
[1772556908038,2.38110015,1987.4,1986.0,2.31313105]
[1772556908238,2.38110015,1987.4,1986.3,0.25171]
[1772556908438,2.38110015,1987.4,1986.1,2.31313105]
[1772556908738,2.38110015,1987.3,1986.1,2.31313105]
[1772556909135,2.38110015,1987.1,1985.8,2.31732409]
[1772556909336,2.38110015,1987.0,1985.8,2.31732409]
[1772556909534,2.38110015,1987.0,1986.0,2.31313105]
[1772556909740,2.38110015,1987.0,1985.9,0.25176]
[1772556910132,2.38110015,1987.0,1985.9,2.56489105]
[1772556910645,2.38110015,1987.0,1985.9,0.25176]
[1772556910940,2.38110015,1987.0,1985.8,0.00419304]
[1772556911142,2.38110015,1987.0,1985.8,2.31732409]
[1772556911645,6.602,1987.1,1985.8,2.31732409]
[1772556911646,2.38110015,1986.8,1985.8,0.00419304]
[1772556911848,2.38110015,1986.8,1985.8,2.31732409]
[1772556912039,2.38110015,1986.8,1985.9,2.31313105]
[1772556912344,2.38110015,1986.8,1985.9,2.56489105]
[1772556912644,2.38110015,1986.8,1985.8,8.91932409]
[1772556912842,2.38110015,1986.8,1985.8,0.00419304]
[1772556913638,2.38110015,1986.8,1985.8,2.56909409]
[1772556913843,2.38110015,1986.8,1985.8,0.25596304]
[1772556914147,2.38110015,1986.8,1985.8,2.56909409]
[1772556914347,2.38110015,1986.8,1985.8,0.00419304]
[1772556914647,2.38110015,1986.6,1985.8,0.00419304]
[1772556915652,2.38110015,1986.4,1985.1,2.31313105]
[1772556916043,2.38110015,1986.2,1984.8,9.16503105]
[1772556916343,2.38110015,1986.2,1984.9,2.31313105]
[1772556916544,2.38110015,1986.2,1984.9,0.00574392]
[1772556916739,2.38110015,1985.6,1984.1,2.31313105]
[1772556916942,2.38110015,1985.2,1983.8,2.56515105]
[1772556917142,2.38110015,1985.0,1983.8,0.25202]
[1772556917343,2.38110015,1984.6,1983.2,2.31313105]
[1772556917544,2.38110015,1984.4,1983.1,2.56525105]
[1772556917745,0.00403903,1984.4,1983.6,2.31313105]
[1772556917940,0.00403903,1984.4,1983.7,2.61083724]
[1772556918145,2.33918473,1984.4,1983.6,6.6]
[1772556918747,0.00403903,1984.4,1983.7,2.35879724]
[1772556918946,2.33918473,1984.4,1983.2,6.8521]
[1772556919250,2.33918473,1984.4,1983.3,2.35879724]
[1772556920450,2.33918473,1984.4,1983.2,6.8521]
[1772556921748,2.33918473,1984.4,1983.4,2.61723706]
[1772556921949,0.00403903,1984.4,1983.7,2.36515706]
[1772556922151,2.29537739,1984.7,1983.9,2.36515706]
[1772556922355,2.29537739,1985.5,1984.4,2.61710706]
[1772556922648,2.54719739,1985.5,1984.2,6.602]
[1772556922845,2.54719739,1985.5,1983.9,0.25201]
[1772556922846,2.54719739,1985.5,1983.9,6.85401]
[1772556923050,2.29537739,1985.2,1983.9,8.96715706]
[1772556923252,2.29943172,1985.2,1984.0,2.36515706]
[1772556923946,2.29537739,1985.0,1983.6,2.36515706]
[1772556924149,2.29537739,1984.8,1983.5,6.602]
[1772556924348,2.29537739,1984.8,1983.5,8.96715706]
[1772556924853,2.29537739,1984.7,1983.5,6.602]
[1772556925050,2.29537739,1984.7,1983.5,2.61722706]
[1772556925245,2.29537739,1984.7,1983.7,2.61719706]
[1772556925453,2.29537739,1985.1,1984.0,2.36515706]
[1772556925650,2.29537739,1985.1,1984.3,0.25197]
[1772556926251,0.00405433,1985.2,1984.3,8.81556706]
[1772556926455,0.00405433,1985.2,1984.5,2.61709706]
[1772556926655,0.00405433,1985.2,1984.5,2.62154275]
[1772556926857,2.29943172,1985.2,1984.5,2.62154275]
[1772556927255,2.29943172,1985.2,1984.5,0.00444569]
[1772556927559,0.00405433,1985.2,1984.5,2.36960275]
[1772556927959,2.29943172,1985.2,1984.5,0.00444569]
[1772556930961,2.29943172,1985.2,1983.9,0.25201]
[1772556931160,2.29943172,1985.2,1983.9,2.61716706]
[1772556931360,2.29537739,1985.0,1983.6,2.36515706]
[1772556931666,2.29537739,1984.8,1983.4,0.25207]
[1772556931859,2.29537739,1984.8,1983.4,0.25846099]
[1772556932060,2.29537739,1984.6,1983.4,0.25846099]
[1772556932766,2.29537739,1984.6,1983.4,2.62361805]
[1772556933264,2.29537739,1984.6,1983.4,0.25846099]
[1772556933461,2.29537739,1984.2,1983.4,0.00639099]
[1772556933762,6.19662,1984.9,1983.4,0.25846099]
[1772556933763,2.29537739,1984.5,1983.4,0.25846099]
[1772556933966,2.29537739,1984.5,1983.4,2.62361805]
[1772556934162,2.29537739,1984.5,1983.4,0.00639099]
[1772556935066,2.54732739,1984.5,1983.4,0.00639099]
[1772556936772,2.29537739,1984.3,1983.4,0.00639099]
[1772556937069,2.29537739,1984.1,1982.8,0.25215]
[1772556937470,2.29537739,1984.1,1982.8,2.61730706]
[1772556937773,2.29537739,1983.9,1983.2,2.61726706]
[1772556937971,2.29537739,1984.3,1983.2,2.6212921]
[1772556939370,2.29537739,1984.6,1983.7,2.36515706]
[1772556940567,2.29537739,1984.6,1983.4,2.36515706]
[1772556941569,2.29537739,1984.6,1983.6,2.36515706]
[1772556941969,2.29537739,1984.6,1983.3,2.36515706]
[1772556942267,2.29537739,1984.6,1983.9,2.36515706]
[1772556942467,2.29537739,1985.1,1983.9,2.36515706]
[1772556942662,2.29537739,1985.1,1984.1,2.36515706]
[1772556942972,2.29537739,1985.1,1984.3,2.36515706]
[1772556943763,2.29537739,1985.1,1983.9,2.36515706]
[1772556943968,2.29537739,1985.1,1984.0,2.61715706]
[1772556944473,0.00405433,1985.2,1984.3,2.36515706]
[1772556944671,2.29943172,1985.2,1984.3,2.36515706]
[1772556945167,2.29943172,1985.2,1984.4,2.26733494]
[1772556945473,0.00405433,1985.2,1984.4,2.26733494]
[1772556945672,2.29943172,1985.2,1984.4,2.26733494]
[1772556946067,2.29943172,1985.2,1984.2,8.61626307]
[1772556946271,2.29537739,1985.5,1984.6,2.0114516]
[1772556946467,2.29537739,1985.5,1984.8,2.00739727]
[1772556946771,2.29537739,1985.5,1984.7,0.25191]
[1772556947269,2.29958949,1985.5,1984.7,0.25694432]
[1772556947465,0.0042121,1985.5,1984.7,2.3320495]
[1772556947865,2.2512726,1986.0,1984.9,2.32143441]
[1772556948068,2.2512726,1986.0,1985.0,2.06971367]
[1772556948976,0.00383959,1986.0,1985.2,2.0657465]
[1772556949174,2.2512726,1986.3,1985.4,2.06313949]
[1772556949375,2.2512726,1986.7,1985.6,2.06313949]
[1772556950165,2.25698019,1986.7,1985.6,2.06313949]
[1772556951172,2.25698019,1986.7,1985.5,0.25181]
[1772556951373,2.25698019,1986.7,1985.5,2.20072068]
[1772556952273,2.25698019,1986.7,1985.2,8.54728696]
[1772556952476,2.2512726,1986.5,1984.9,2.19338368]
[1772556952776,2.2512726,1986.1,1984.8,1.94150368]
[1772556953177,2.2512726,1986.1,1984.7,6.60703432]
[1772556953673,2.2512726,1986.1,1984.7,8.54495322]
[1772556954079,2.2512726,1986.1,1984.8,2.1898089]
[1772556955674,2.2512726,1986.6,1985.3,1.93695921]
[1772556955876,2.2512726,1986.6,1985.3,8.53895921]
[1772556956179,2.2512726,1986.4,1985.0,1.93714958]
[1772556957478,2.2512726,1986.4,1985.4,1.92810808]
[1772556957779,2.25698019,1986.7,1985.6,1.92810808]
[1772556958081,2.25698019,1986.7,1985.7,2.17989808]
[1772556959076,2.25698019,1986.7,1985.9,2.16236701]
[1772556959680,2.25698019,1986.7,1985.7,6.601]
[1772556959870,2.25698019,1986.7,1985.7,8.50812282]
[1772556960275,2.25698019,1986.7,1985.7,6.601]
[1772556960683,2.25698019,1986.7,1985.8,2.15564456]
[1772556961383,2.2512726,1987.0,1986.3,1.8893555]
[1772556961585,2.2512726,1987.4,1986.5,1.88364791]
[1772556961778,2.2512726,1987.4,1986.5,8.48464791]
[1772556961979,2.2512726,1987.4,1986.6,1.88364791]
[1772556962581,2.25734392,1987.4,1986.6,0.00591266]
[1772556963086,2.25734392,1987.4,1986.6,1.87426024]
[1772556963286,2.2512726,1987.9,1987.0,1.04790524]
[1772556963479,2.2512726,1987.9,1986.9,6.6]
[1772556963676,2.57136192,1987.9,1986.7,1.04518962]
[1772556963979,2.2512726,1987.8,1986.6,0.00591266]
[1772556964278,2.2512726,1987.6,1986.7,7.48799505]
[1772556964477,2.2512726,1988.1,1987.4,1.04267139]
[1772556964679,2.2512726,1988.7,1987.5,1.29423139]
[1772556964885,2.2512726,1988.7,1987.5,0.25156]
[1772556965180,2.2512726,1988.7,1987.5,1.29423139]
[1772556965583,2.25522553,1988.7,1987.1,7.63827474]
[1772556965783,0.25145,1988.4,1987.1,1.03927474]
[1772556965985,0.25145,1988.4,1986.6,0.00591266]
[1772556965986,2.2512726,1988.1,1986.8,6.599]
[1772556966385,2.2512726,1988.1,1986.7,6.598]
[1772556966782,2.2512726,1988.6,1987.4,1.0368474]
[1772556966986,2.2512726,1988.6,1987.2,7.6348474]
[1772556967186,0.00395293,1988.7,1987.1,6.598]
[1772556967187,2.2512726,1988.4,1987.1,6.598]
[1772556967384,2.2512726,1988.4,1987.3,0.9895231]
[1772556967786,2.2512726,1988.4,1987.2,0.2516]
[1772556968184,2.2512726,1988.2,1986.7,0.25166]
[1772556968386,0.25151,1987.9,1986.6,0.99306155]
[1772556968586,2.2512726,1987.8,1986.6,0.00591266]
[1772556968789,2.2512726,1987.8,1986.6,0.99306155]
[1772556969181,2.2512726,1987.8,1986.6,0.00591266]
[1772556969891,2.2512726,1987.6,1986.6,0.00591266]
[1772556970289,2.2512726,1987.4,1985.7,1.35328343]
[1772556970492,2.2512726,1987.2,1985.7,7.95028343]
[1772556970688,2.2512726,1987.2,1985.9,1.35076828]
[1772556971387,2.2512726,1987.2,1985.9,1.35506361]
[1772556971388,2.25716517,1987.2,1985.9,1.35506361]
[1772556971589,2.25716517,1987.2,1985.9,1.10330361]
[1772556971789,2.2512726,1987.0,1985.9,0.00429533]
[1772556971987,2.2512726,1987.0,1986.1,1.14342785]
[1772556972189,2.2512726,1987.0,1986.2,1.3952392]
[1772556972990,2.2512726,1987.0,1986.2,0.25172]
[1772556973184,2.2512726,1987.0,1985.9,0.00429533]
[1772556973587,2.2512726,1986.9,1985.9,0.00429533]
[1772556973788,2.2512726,1986.6,1985.2,0.25184]
[1772556974794,2.2512726,1986.6,1985.2,0.25794279]
[1772556975191,2.2512726,1986.4,1985.2,0.25794279]
[1772556975492,2.2512726,1986.4,1985.2,0.00610279]
[1772556975697,2.2512726,1986.2,1985.2,0.00610279]
[1772556977092,2.2512726,1986.0,1984.5,1.14404174]
[1772556977294,2.2512726,1985.8,1984.5,1.14404174]
[1772556977501,2.2512726,1985.8,1984.3,6.598]
[1772556977695,2.2512726,1985.8,1984.2,1.42062007]
[1772556977894,2.11013072,1986.2,1984.8,7.44875641]
[1772556978094,2.11013072,1986.2,1984.9,1.41488817]
[1772556978095,2.11629656,1986.2,1984.9,1.41488817]
[1772556978293,2.11013072,1986.0,1984.8,0.00650329]
[1772556978493,2.11013072,1986.0,1984.8,1.16752664]
[1772556978695,2.11013072,1985.8,1984.8,0.00650329]
[1772556978895,2.11013072,1985.6,1984.8,0.00650329]
[1772556979400,2.11013072,1985.4,1984.8,0.00650329]
[1772556979597,2.11013072,1985.4,1984.1,1.16102335]
[1772556980802,2.11013072,1985.4,1984.3,1.44596507]
[1772556981400,2.11013072,1985.4,1984.1,1.18830694]
[1772556982298,2.11013072,1985.4,1984.3,1.17985504]
[1772556982499,2.11013072,1985.4,1984.1,0.00636862]
[1772556983289,2.11013072,1985.4,1984.2,0.25198]
[1772556983290,2.09465982,1985.3,1984.2,0.25198]
[1772556983895,2.09465982,1985.3,1984.5,7.37235219]
[1772556984100,0.00616584,1986.2,1984.8,1.42646395]
[1772556984101,2.09465982,1986.1,1984.8,1.42646395]
[1772556984303,2.09465982,1986.1,1985.0,1.42644395]
[1772556986409,2.09465982,1986.1,1985.2,1.42962092]
[1772556986603,0.00616584,1986.2,1985.5,1.17777092]
[1772556986801,0.00616584,1986.2,1985.5,1.18367504]
[1772556987203,2.10082566,1986.2,1985.5,0.00590412]
[1772556988403,6.6,1986.6,1985.5,0.00590412]
[1772556988404,2.09465982,1986.4,1985.6,7.61252121]
[1772556988608,2.09465982,1986.6,1985.6,1.41820121]
[1772556989510,0.00593743,1986.6,1985.9,1.16711193]
[1772556989709,2.09465982,1987.7,1986.1,1.1611745]
[1772556989906,2.09465982,1987.7,1986.2,1.4128945]
[1772556990502,2.09465982,1987.7,1986.4,1.4109898]
[1772556990706,2.10026763,1987.7,1986.4,1.4109898]
[1772556990907,2.09465982,1987.5,1986.0,1.1592898]
[1772556991406,2.09465982,1987.5,1985.9,6.6]
[1772556991407,2.09465982,1987.5,1986.1,1.4165326]
[1772556992608,2.09465982,1987.3,1985.9,6.6]
[1772556992811,2.09465982,1987.1,1985.6,1.41284036]
[1772556993008,2.09465982,1986.9,1985.6,1.41284036]
[1772556993514,2.09465982,1986.9,1985.9,1.19388371]
[1772556994810,2.09465982,1986.9,1985.8,0.25178]
[1772556995011,2.09465982,1986.9,1985.8,1.44384477]
[1772556995315,2.09465982,1986.7,1985.5,0.00590412]
[1772556995516,2.09465982,1986.5,1985.5,0.00590412]
[1772556996119,6.599,1986.6,1984.9,5.36133249]
[1772556996120,2.09465982,1986.3,1984.9,5.36133249]
[1772556996321,2.09465982,1986.3,1984.8,4.42123789]
[1772556996618,2.09465982,1986.1,1984.8,1.44804536]
[1772556996919,2.09465982,1986.1,1984.9,1.19614536]
[1772556997117,2.0990975,1986.1,1985.0,0.25188]
[1772556997315,2.0990975,1986.1,1984.9,1.2023494]
[1772556997316,2.0990975,1986.1,1984.9,0.00620404]
[1772556997615,2.0990975,1986.1,1984.9,0.25808404]
[1772556997917,2.0990975,1986.1,1984.0,5.36767264]
[1772556997918,2.09465982,1985.5,1984.0,5.36767264]
[1772556998211,2.09465982,1985.3,1984.1,1.4565531]
[1772556998411,2.09465982,1985.3,1984.0,1.45481185]
[1772556998616,2.09465982,1985.3,1984.1,1.20282185]
[1772556999119,2.09465982,1985.3,1984.1,0.00482299]
[1772556999617,2.09465982,1985.1,1984.2,0.25198]
[1772557000016,8.69365982,1986.0,1984.5,1.22196546]
[1772557000219,2.09465982,1985.9,1984.6,0.25193]
[1772557000418,2.09465982,1985.9,1984.6,1.47391616]
[1772557000913,2.09465982,1985.9,1984.8,1.47218308]
[1772557001114,2.09465982,1985.9,1984.8,0.2519]
[1772557002016,6.60443768,1986.1,1985.1,1.21936513]
[1772557002213,2.09465982,1987.1,1985.6,0.25179]
[1772557002519,2.09465982,1987.1,1985.8,6.44543]
[1772557002821,2.09465982,1987.1,1986.2,0.25172]
[1772557003117,2.09465982,1987.1,1986.2,0.74583119]
[1772557003318,2.09876797,1987.1,1986.2,0.74941883]
[1772557004120,2.09465982,1987.8,1986.8,0.74504164]
[1772557004320,2.09465982,1987.8,1986.9,0.49339164]
[1772557004614,2.09465982,1987.8,1986.8,0.25165]
[1772557005015,2.098431,1987.8,1986.8,0.25165]
[1772557005223,2.098431,1987.8,1986.8,6.93834521]
[1772557005422,2.09465982,1988.1,1987.3,0.49538719]
[1772557005617,2.09465982,1988.1,1987.1,4.16933789]
[1772557005918,2.09465982,1987.9,1986.6,0.49538719]
[1772557006111,2.09465982,1987.9,1986.5,4.16933789]
[1772557006316,2.09465982,1987.9,1986.5,0.49539754]
[1772557006513,2.1007891,1987.9,1986.8,0.25165]
[1772557006712,2.1007891,1987.9,1986.4,11.26303514]
[1772557006918,2.1007891,1987.9,1986.6,0.49469725]
[1772557007311,2.1007891,1987.9,1986.5,0.25169]
[1772557007720,2.1007891,1987.9,1986.5,6.94879202]
[1772557007921,2.07052948,1987.8,1986.6,0.50317377]
[1772557008819,2.07052948,1987.8,1986.5,0.25169]
[1772557009922,2.07052948,1987.8,1986.7,0.25166]
[1772557010225,0.00612928,1987.9,1987.1,0.25161]
[1772557010421,0.00612928,1987.9,1987.1,0.76299191]
[1772557010618,0.00612928,1987.9,1987.2,0.51074276]
[1772557011122,2.07052948,1988.3,1987.4,0.50992121]
[1772557011324,2.07052948,1988.3,1987.5,0.25156]
[1772557011518,2.07052948,1988.3,1987.1,6.69961121]
[1772557011519,2.07052948,1988.3,1987.1,0.50992121]
[1772557011919,2.07052948,1989.0,1987.6,0.50930645]
[1772557012122,0.00524108,1989.0,1988.3,2.06852527]
[1772557012318,0.00524108,1989.0,1988.2,6.43771]
[1772557012319,0.01242878,1989.3,1988.5,2.06852527]
[1772557012521,2.07052948,1989.9,1988.9,2.06852527]
[1772557012716,2.07052948,1989.9,1988.9,8.66552527]
[1772557012914,2.07052948,1989.9,1988.8,0.2514]
[1772557012915,2.07052948,1989.9,1988.6,4.16933789]
[1772557013223,6.597,1990.1,1987.9,2.06852527]
[1772557013224,2.07052948,1989.4,1987.9,2.06852527]
[1772557013520,2.0754289,1989.4,1988.5,2.06852527]
[1772557013721,2.07052948,1990.7,1989.3,2.06852527]
[1772557014414,2.07052948,1990.7,1989.2,6.596]
[1772557014415,2.07052948,1991.0,1989.7,2.06852527]
[1772557014619,2.07052948,1991.0,1989.3,2.06852527]
[1772557014820,2.07052948,1991.0,1989.7,0.00391738]
[1772557014821,2.07052948,1990.8,1989.7,0.00391738]
[1772557015023,2.07052948,1990.6,1989.0,2.06852527]
[1772557015221,2.07052948,1990.6,1989.2,2.06852527]
[1772557015823,2.07052948,1990.6,1989.4,2.06852527]
[1772557016025,2.07052948,1990.9,1989.4,2.07456382]
[1772557016227,2.07052948,1990.9,1989.6,2.06852527]
[1772557016422,0.00549577,1991.0,1990.2,2.06852527]
[1772557016721,3.63537752,1992.2,1990.2,2.06852527]
[1772557016722,2.07052948,1992.2,1990.8,2.06852527]
[1772557017117,2.8811484,1992.5,1991.2,2.06852527]
[1772557017323,2.07052948,1992.4,1991.4,2.06852527]
[1772557017628,2.07639498,1992.4,1991.4,0.00388974]
[1772557018027,2.07639498,1992.4,1990.8,6.593]
[1772557018028,2.07052948,1992.0,1990.7,2.06852527]
[1772557018323,2.07052948,1992.0,1990.8,2.06852527]
[1772557018530,0.0058655,1992.4,1991.2,2.06852527]
[1772557018728,0.0058655,1992.4,1991.4,2.06852527]
[1772557018924,0.0058655,1992.4,1991.4,2.07211867]
[1772557019425,2.07639498,1992.4,1991.4,2.07211867]
[1772557019728,2.07639498,1992.4,1991.4,0.0035934]
[1772557020325,2.07639498,1992.4,1991.4,2.07211867]
[1772557020529,2.07639498,1992.4,1991.5,2.06852527]
[1772557021030,2.07052948,1991.9,1990.5,2.06852527]
[1772557021224,2.07052948,1991.9,1990.4,2.06852527]
[1772557021423,2.07052948,1991.7,1990.1,2.06852527]
[1772557021922,2.07052948,1991.5,1989.9,6.589]
[1772557022122,2.07052948,1991.1,1989.9,0.00429327]
[1772557022320,2.07052948,1991.0,1989.2,8.25155527]
[1772557022530,2.07052948,1990.8,1989.5,2.06852527]
[1772557023323,2.0748609,1990.8,1989.5,2.07220707]
[1772557023527,6.588,1991.0,1989.5,2.07220707]
[1772557023528,2.07052948,1992.0,1990.3,2.06852527]
[1772557024025,2.07052948,1991.9,1990.3,2.06852527]
[1772557024230,2.07052948,1991.6,1990.0,2.06852527]
[1772557024429,2.07052948,1991.4,1990.0,2.06852527]
[1772557024826,0.00517124,1991.6,1990.4,6.17947]
[1772557025027,0.00517124,1991.6,1990.7,2.06852527]
[1772557025629,2.07570072,1991.6,1990.7,2.06852527]
[1772557025830,0.00517124,1991.6,1990.7,2.06852527]
[1772557026029,0.00517124,1991.6,1990.9,2.06852527]
[1772557026234,2.07052948,1992.2,1991.1,2.06852527]
[1772557026631,9.4671484,1992.5,1991.3,2.06852527]
[1772557026830,9.4671484,1992.5,1991.5,2.06852527]
[1772557027031,2.8811484,1992.5,1991.5,2.06852527]
[1772557027230,0.8166903,1992.5,1991.5,2.07427248]
[1772557027432,0.8166903,1992.5,1991.9,2.06852527]
[1772557027929,0.8166903,1992.5,1991.8,6.17511]
[1772557027930,0.2973603,1992.5,1992.1,2.06852527]
[1772557028128,2.08135522,1993.0,1992.0,0.25099]
[1772557028327,8.25286522,1993.0,1991.5,0.00574721]
[1772557028532,2.07052948,1992.8,1991.5,0.00574721]
[1772557028825,2.07052948,1992.6,1991.5,0.00574721]
[1772557029023,2.07443788,1992.6,1991.5,0.00574721]
[1772557029223,2.07052948,1992.4,1991.5,0.00574721]
[1772557029429,2.07052948,1992.4,1990.8,2.06852527]
[1772557029831,2.32147948,1992.4,1990.8,2.06852527]
[1772557030029,2.32147948,1992.4,1990.7,0.25115]
[1772557030231,2.32147948,1992.4,1990.7,2.31967527]
[1772557030432,2.07052948,1992.2,1991.0,2.06852527]
[1772557030631,2.07052948,1992.2,1991.2,2.06852527]
[1772557031134,2.07052948,1992.2,1990.9,2.06852527]
[1772557031534,2.07052948,1992.1,1991.0,2.31964527]
[1772557031730,2.07052948,1992.1,1990.7,2.0728534]
[1772557032236,2.07052948,1991.9,1990.7,2.0728534]
[1772557032436,8.65352948,1991.9,1990.7,2.0728534]
[1772557032828,2.07052948,1991.8,1990.7,2.0728534]
[1772557033028,2.07052948,1992.1,1991.1,2.06852527]
[1772557033832,2.07052948,1992.1,1990.8,2.06852527]
[1772557034336,2.07052948,1992.1,1991.0,2.06852527]
[1772557034536,2.07052948,1992.1,1991.2,2.06852527]
[1772557034728,2.07052948,1992.1,1990.7,0.00432813]
[1772557035531,2.07052948,1992.1,1990.8,2.31966527]
[1772557036032,2.07052948,1991.9,1990.7,0.00432813]
[1772557036233,2.07052948,1991.7,1990.7,2.0728534]
[1772557036636,2.07052948,1991.7,1990.7,0.00432813]
[1772557036933,2.07052948,1991.7,1990.7,2.0728534]
[1772557037138,2.07052948,1991.7,1990.7,0.00432813]
[1772557037340,2.07052948,1991.7,1991.0,0.25112]
[1772557037534,2.07052948,1992.1,1991.0,2.06852527]
[1772557037740,2.07052948,1992.1,1990.8,0.25114]
[1772557037940,3.63928592,1992.6,1990.8,2.52231197]
[1772557037941,2.32064331,1991.9,1990.8,2.52231197]
[1772557038241,2.32064331,1992.1,1991.0,2.52229197]
[1772557038835,8.90264331,1992.1,1991.0,0.25112]
[1772557039036,2.32064331,1992.0,1991.0,0.25112]
[1772557039237,2.32064331,1992.0,1991.1,0.72682039]
[1772557039535,2.25406252,1992.3,1991.3,2.51834749]
[1772557039739,2.25406252,1992.3,1991.4,2.99431021]
[1772557039938,2.25406252,1992.3,1991.5,0.72703272]
[1772557040136,2.25406252,1992.3,1991.4,2.26727749]
[1772557040137,2.25406252,1992.3,1991.6,0.72833353]
[1772557040337,2.25406252,1992.3,1991.7,0.72843863]
[1772557040539,0.0039084,1992.6,1991.9,2.26727749]
[1772557040736,0.0039084,1992.6,1992.0,0.72841421]
[1772557041041,2.25797092,1992.6,1991.6,2.26727749]
[1772557041235,2.25797092,1992.6,1991.7,0.73006474]
[1772557041431,2.25406252,1992.2,1990.8,2.26727749]
[1772557041634,2.25406252,1992.0,1990.8,2.26727749]
[1772557042542,6.582,1992.1,1990.7,0.00432813]
[1772557042543,2.25406252,1991.8,1990.7,0.00432813]
[1772557042839,2.25406252,1991.6,1990.7,0.00432813]
[1772557044243,2.25406252,1991.4,1990.7,0.00432813]
[1772557044542,2.25406252,1991.4,1990.2,2.26727749]
[1772557045240,2.25406252,1991.2,1990.2,4.16933789]
[1772557045440,2.25406252,1991.0,1990.2,0.00533763]
[1772557046138,2.25406252,1991.1,1989.8,6.18131]
[1772557046346,2.25406252,1991.1,1990.2,2.26727749]
[1772557046541,2.25406252,1991.1,1990.0,0.25124]
[1772557047039,2.25406252,1990.9,1990.0,0.00368994]
[1772557048846,2.25406252,1991.1,1990.0,2.27096743]
[1772557049140,6.582,1991.0,1990.0,2.27096743]
[1772557049342,2.25406252,1990.9,1990.0,2.27096743]
[1772557050143,2.25406252,1990.9,1990.0,0.00368994]
[1772557050446,8.83706252,1990.8,1990.0,0.00368994]
[1772557050644,2.25406252,1990.7,1990.0,0.00368994]
[1772557052648,8.83706252,1990.6,1990.0,0.00368994]
[1772557052849,2.25406252,1990.5,1990.0,0.00368994]
[1772557053545,8.83706252,1991.1,1990.2,2.51849749]
[1772557053744,0.006523,1991.2,1990.4,2.26727749]
[1772557053950,2.26058552,1991.2,1990.5,2.88894715]
[1772557054244,2.26058552,1991.2,1990.6,0.62166966]